bitfinex-derivatives/quotes_BTCF0:USTF0_20250716
["timestamp","ask_amount","ask_price","bid_price","bid_amount"]
[1752694571489,0.8212425,119040.0,119030.0,0.65701246]
[1752694572186,0.8212425,119040.0,119030.0,0.33111835]
[1752694572391,0.8242425,119040.0,119030.0,0.68819018]
[1752694572993,0.7822668,119040.0,119030.0,0.68819018]
[1752694573197,0.00304,119040.0,119030.0,0.65801246]
[1752694573890,0.00304,119040.0,119030.0,0.2566367]
[1752694574189,0.00304,119040.0,119030.0,0.6579601]
[1752694574382,0.1678775,119060.0,119050.0,0.2098455]
[1752694574588,0.1678775,119060.0,119050.0,0.68150274]
[1752694574589,0.8630171,119060.0,119050.0,0.68150274]
[1752694574785,0.8630171,119060.0,119050.0,0.6739625]
[1752694575193,0.8630171,119060.0,119050.0,0.68150274]
[1752694575592,0.8660171,119060.0,119050.0,0.68250274]
[1752694575784,0.8660171,119060.0,119050.0,0.6975989]
[1752694576189,0.8660171,119060.0,119050.0,0.68246657]
[1752694576389,0.8660171,119060.0,119050.0,0.69945499]
[1752694576589,0.8660171,119060.0,119050.0,0.74470656]
[1752694576994,0.8660171,119060.0,119050.0,0.38863473]
[1752694577192,0.8660171,119060.0,119050.0,0.34338316]
[1752694577495,0.8659771,119060.0,119050.0,0.71458732]
[1752694577697,0.8659771,119060.0,119050.0,0.35851549]
[1752694578289,0.8659771,119060.0,119050.0,0.3886017]
[1752694580084,1.22204893,119060.0,119050.0,0.10030463]
[1752694580292,1.22204893,119060.0,119050.0,0.04053761]
[1752694580894,1.22204893,119060.0,119050.0,0.02354919]
[1752694581992,1.22204893,119060.0,119050.0,0.001]
[1752694583595,0.8659771,119060.0,119050.0,0.001]
[1752694583797,1.22204893,119060.0,119050.0,0.001]
[1752694584699,1.22204893,119060.0,119050.0,0.1688885]
[1752694584901,0.8659771,119060.0,119050.0,0.1688885]
[1752694585094,1.22204893,119060.0,119050.0,0.2162385]
[1752694585701,1.22204893,119060.0,119050.0,0.04835]
[1752694586103,1.22204893,119060.0,119050.0,0.2162385]
[1752694586302,1.22204893,119060.0,119050.0,0.1688885]
[1752694586695,1.22204893,119060.0,119050.0,0.001]
[1752694588397,0.8659771,119060.0,119050.0,0.001]
[1752694588598,1.22204893,119060.0,119050.0,0.001]
[1752694589602,1.83172893,119060.0,119050.0,0.001]
[1752694589796,0.52396033,119050.0,119040.0,0.02274919]
[1752694589996,0.54245299,119050.0,119040.0,0.0002]
[1752694590192,0.1679026,119040.0,119030.0,0.0528354]
[1752694590397,1.13477443,119040.0,119030.0,0.2679021]
[1752694590595,1.13477443,119040.0,119030.0,0.24269589]
[1752694592304,1.13577443,119040.0,119030.0,0.07677919]
[1752694592506,1.13577443,119040.0,119030.0,0.02454919]
[1752694592698,1.49577443,119040.0,119030.0,0.02454919]
[1752694593611,1.49577443,119040.0,119030.0,0.002]
[1752694594111,0.1679167,119030.0,119020.0,0.07009919]
[1752694594407,0.52398853,119030.0,119020.0,0.0999854]
[1752694594710,0.52398853,119030.0,119020.0,0.0526354]
[1752694595211,0.52498853,119030.0,119020.0,0.0546354]
[1752694595407,0.52498853,119030.0,119020.0,0.1019854]
[1752694595609,0.1689167,119030.0,119020.0,0.2699162]
[1752694595907,0.52498853,119030.0,119020.0,0.24470999]
[1752694597009,0.52498853,119030.0,119020.0,0.07677919]
[1752694597605,0.52498853,119030.0,119020.0,0.24470999]
[1752694598109,0.52498853,119030.0,119020.0,0.2747962]
[1752694599410,0.52498853,119030.0,119020.0,0.2903362]
[1752694600010,1.13566853,119030.0,119020.0,0.2903362]
[1752694600412,1.13566853,119030.0,119020.0,0.1224054]
[1752694600608,1.13566853,119030.0,119020.0,0.1068654]
[1752694602014,0.7795967,119030.0,119020.0,0.2747962]
[1752694602311,1.13566853,119030.0,119020.0,0.2747962]
[1752694602812,1.13566853,119030.0,119020.0,0.1068654]
[1752694604812,1.13566853,119030.0,119020.0,0.2747962]
[1752694605008,0.7794767,119030.0,119020.0,0.64298884]
[1752694605213,0.7794367,119030.0,119020.0,0.64298884]
[1752694605611,0.1689167,119030.0,119020.0,0.64298884]
[1752694605808,0.1689167,119030.0,119020.0,0.6581542]
[1752694606009,1.13550853,119030.0,119020.0,0.30208237]
[1752694606210,1.13550853,119030.0,119020.0,0.28695461]
[1752694606813,0.7794367,119030.0,119020.0,0.28695461]
[1752694607420,0.7794367,119030.0,119020.0,0.30208237]
[1752694609611,0.7794367,119030.0,119020.0,0.6581542]
[1752694609814,0.7794367,119030.0,119020.0,0.30208237]
[1752694610812,0.7794367,119030.0,119020.0,0.6581542]
[1752694611018,0.7794767,119030.0,119020.0,0.6581542]
[1752694614317,0.7794767,119030.0,119020.0,0.30208237]
[1752694614510,0.1689567,119030.0,119020.0,0.6581542]
[1752694614916,0.1689567,119030.0,119020.0,0.9527542]
[1752694615115,0.7792367,119030.0,119020.0,0.9527542]
[1752694616511,0.7792367,119030.0,119020.0,0.90750263]
[1752694617011,0.7792367,119030.0,119020.0,0.5514308]
[1752694617312,0.7792367,119030.0,119020.0,0.90750263]
[1752694618721,0.7792367,119030.0,119020.0,0.96796433]
[1752694619017,0.7792367,119030.0,119020.0,0.6118925]
[1752694619218,0.7792367,119030.0,119020.0,0.96796433]
[1752694619918,0.7792367,119030.0,119020.0,0.98484436]
[1752694620214,0.61132,119030.0,119020.0,0.98484436]
[1752694620419,0.00104,119030.0,119020.0,0.98484436]
[1752694620614,0.167898,119050.0,119040.0,0.2490226]
[1752694620816,0.3121855,119060.0,119050.0,0.2023885]
[1752694621009,0.2702134,119060.0,119050.0,0.68547243]
[1752694621214,0.2702134,119060.0,119050.0,0.65527163]
[1752694621414,0.2702134,119060.0,119050.0,0.2538985]
[1752694621720,0.8803734,119060.0,119050.0,0.3143602]
[1752694621924,1.23644523,119060.0,119050.0,0.1464717]
[1752694622122,1.23644523,119060.0,119050.0,0.1298217]
[1752694622319,1.23644523,119060.0,119050.0,0.2977102]
[1752694622511,0.8803734,119060.0,119050.0,0.2538985]
[1752694622711,1.23644523,119060.0,119050.0,0.2538985]
[1752694622919,0.2732134,119060.0,119050.0,0.67143203]
[1752694623217,0.8832934,119060.0,119050.0,0.67143203]
[1752694623417,0.8619087,119060.0,119050.0,0.67043203]
[1752694623622,0.8629487,119060.0,119050.0,0.67143203]
[1752694625223,0.8629487,119060.0,119050.0,0.65618081]
[1752694625424,0.8629487,119060.0,119050.0,0.30010898]
[1752694625625,0.2528687,119060.0,119050.0,0.30010898]
[1752694625824,0.2108971,119060.0,119050.0,0.62828977]
[1752694626025,0.2108971,119060.0,119050.0,0.27221794]
[1752694626323,0.2108971,119060.0,119050.0,0.67348946]
[1752694626825,0.00104,119060.0,119050.0,0.62828977]
[1752694627215,0.1689147,119060.0,119050.0,0.33267964]
[1752694627421,0.1689147,119060.0,119050.0,0.68875147]
[1752694628020,0.1689147,119060.0,119050.0,0.33267964]
[1752694628326,0.1689147,119060.0,119050.0,0.62828977]
[1752694629426,0.1689147,119060.0,119050.0,0.27221794]
[1752694629631,0.1689147,119060.0,119050.0,0.62828977]
[1752694630427,0.1689147,119060.0,119050.0,0.27221794]
[1752694630624,0.1689147,119060.0,119050.0,0.62828977]
[1752694631024,0.1689147,119060.0,119050.0,0.6734443]
[1752694631230,0.1689147,119060.0,119050.0,0.31737247]
[1752694631622,0.52498653,119060.0,119050.0,0.30072247]
[1752694631840,0.52498653,119060.0,119050.0,0.09357827]
[1752694632833,0.52498653,119060.0,119050.0,0.04842374]
[1752694633132,0.52498653,119060.0,119050.0,0.20878898]
[1752694633133,0.1689147,119060.0,119050.0,0.20878898]
[1752694633332,0.52498653,119060.0,119050.0,0.25540898]
[1752694633532,0.52498653,119060.0,119050.0,0.26032898]
[1752694634531,0.1689147,119060.0,119050.0,0.26032898]
[1752694634732,0.52498653,119060.0,119050.0,0.26032898]
[1752694635223,0.1689147,119060.0,119050.0,0.26032898]
[1752694635427,0.52498653,119060.0,119050.0,0.26263898]
[1752694636235,0.52498653,119060.0,119050.0,0.26032898]
[1752694636437,1.14570653,119060.0,119050.0,0.26032898]
[1752694636727,0.1689147,119060.0,119050.0,0.26032898]
[1752694636933,0.7893547,119060.0,119050.0,0.23774824]
[1752694637136,0.7893547,119060.0,119050.0,0.29171898]
[1752694637331,1.14542653,119060.0,119050.0,0.29402898]
[1752694638341,1.14542653,119060.0,119050.0,0.12614018]
[1752694638533,0.7893547,119060.0,119050.0,0.27144824]
[1752694638834,1.14542653,119060.0,119050.0,0.30155254]
[1752694639236,0.7893547,119060.0,119050.0,0.30155254]
[1752694639436,1.14542653,119060.0,119050.0,0.30155254]
[1752694639837,0.7893547,119060.0,119050.0,0.30155254]
[1752694640040,1.14542653,119060.0,119050.0,0.30155254]
[1752694640641,0.7893547,119060.0,119050.0,0.30155254]
[1752694641233,0.1689147,119060.0,119050.0,0.30155254]
[1752694641433,0.7949947,119060.0,119050.0,0.68022818]
[1752694641639,0.7949947,119060.0,119050.0,0.30155254]
[1752694642137,0.7949947,119060.0,119050.0,0.65762437]
[1752694642337,0.7949947,119060.0,119050.0,0.30155254]
[1752694642532,1.15106653,119060.0,119050.0,0.30155254]
[1752694642932,0.7949947,119060.0,119050.0,0.30155254]
[1752694644139,0.7949947,119060.0,119050.0,0.34670707]
[1752694644341,1.15106653,119060.0,119050.0,0.34670707]
[1752694645341,0.7949947,119060.0,119050.0,0.34670707]
[1752694645643,1.15106653,119060.0,119050.0,0.34670707]
[1752694647146,0.7949947,119060.0,119050.0,0.34670707]
[1752694647340,1.15225577,119060.0,119050.0,0.34670707]
[1752694647949,0.79618394,119060.0,119050.0,0.34670707]
[1752694648151,0.79618394,119060.0,119050.0,0.31660277]
[1752694648552,0.79674967,119060.0,119050.0,0.31660277]
[1752694649353,1.1528215,119060.0,119050.0,0.31660277]
[1752694649554,0.79674967,119060.0,119050.0,0.31660277]
[1752694649755,0.79674967,119060.0,119050.0,0.6726746]
[1752694650157,0.17066967,119060.0,119050.0,0.31660277]
[1752694650354,0.80422967,119060.0,119050.0,0.6726746]
[1752694651052,0.80422967,119060.0,119050.0,0.70285347]
[1752694651254,0.00279497,119060.0,119050.0,0.65769894]
[1752694651458,0.17066997,119060.0,119050.0,0.6726746]
[1752694651656,0.17066997,119060.0,119050.0,0.31660277]
[1752694651852,0.17066997,119060.0,119050.0,0.6726746]
[1752694653657,0.17066997,119060.0,119050.0,0.62752007]
[1752694654260,0.17066997,119060.0,119050.0,0.68798177]
[1752694657061,0.17066997,119060.0,119050.0,0.98258177]
[1752694659170,0.17066997,119060.0,119050.0,0.62650994]
[1752694659463,0.17066997,119060.0,119050.0,0.98258177]
[1752694659661,0.17066997,119060.0,119050.0,0.62650994]
[1752694659855,0.17066997,119060.0,119050.0,0.98258177]
[1752694660454,0.17066997,119060.0,119050.0,0.92212007]
[1752694661062,0.17066997,119060.0,119050.0,0.98258177]
[1752694661363,0.17066997,119060.0,119050.0,0.62650994]
[1752694661855,0.5267418,119060.0,119050.0,0.10355944]
[1752694662061,1.5363418,119060.0,119050.0,0.06985944]
[1752694662368,1.5363418,119060.0,119050.0,0.06493944]
[1752694662567,1.5363418,119060.0,119050.0,0.10355944]
[1752694662764,1.18026997,119060.0,119050.0,0.10355944]
[1752694663165,1.5368735,119060.0,119050.0,0.14881631]
[1752694663365,1.18080167,119060.0,119050.0,0.14881631]
[1752694663569,1.5368735,119060.0,119050.0,0.14881631]
[1752694664262,1.18133198,119060.0,119050.0,0.14881631]
[1752694664567,1.53740381,119060.0,119050.0,0.10003466]
[1752694665561,1.53749512,119060.0,119050.0,0.10003466]
[1752694665868,1.18142329,119060.0,119050.0,0.10003466]
[1752694666068,1.53749512,119060.0,119050.0,0.10003466]
[1752694667370,1.18142329,119060.0,119050.0,0.10003466]
[1752694667565,1.53749512,119060.0,119050.0,0.04849466]
[1752694668174,1.18142329,119060.0,119050.0,0.04849466]
[1752694668474,1.53749512,119060.0,119050.0,0.04849466]
[1752694669076,1.18142329,119060.0,119050.0,0.04849466]
[1752694669279,1.53749512,119060.0,119050.0,0.04849466]
[1752694669579,1.53749512,119060.0,119050.0,0.04095511]
[1752694670172,1.18142329,119060.0,119050.0,0.04095511]
[1752694670371,1.53749512,119060.0,119050.0,0.08710511]
[1752694670576,1.53749512,119060.0,119050.0,0.09162511]
[1752694670874,1.18142329,119060.0,119050.0,0.09162511]
[1752694671070,1.53789512,119060.0,119050.0,0.09162511]
[1752694671576,1.18182329,119060.0,119050.0,0.09162511]
[1752694671779,1.53789512,119060.0,119050.0,0.09162511]
[1752694671978,1.18182329,119060.0,119050.0,0.09162511]
[1752694672178,0.88789512,119060.0,119050.0,0.09162511]
[1752694672379,1.53905512,119060.0,119050.0,0.09162511]
[1752694672678,1.18442329,119060.0,119050.0,0.09162511]
[1752694672878,0.88789512,119060.0,119050.0,0.09162511]
[1752694673177,1.18406329,119060.0,119050.0,0.09162511]
[1752694673378,1.54013512,119060.0,119050.0,0.09162511]
[1752694673674,1.18406329,119060.0,119050.0,0.09162511]
[1752694673877,1.54013512,119060.0,119050.0,0.09162511]
[1752694674680,1.54013512,119060.0,119050.0,0.04095511]
[1752694674874,1.18406329,119060.0,119050.0,0.02363567]
[1752694675178,1.54013512,119060.0,119050.0,0.02363567]
[1752694675375,1.54013512,119060.0,119050.0,7e-08]
[1752694675580,0.1678887,119050.0,119040.0,2e-08]
[1752694675879,0.1679169,119030.0,119020.0,0.09592687]
[1752694676074,1.17674873,119030.0,119020.0,0.09592687]
[1752694676276,1.19574636,119030.0,119020.0,0.09592687]
[1752694676681,1.19574636,119030.0,119000.0,0.0925017]
[1752694676682,0.2021752,119010.0,119000.0,0.0925017]
[1752694676979,0.2044793,119000.0,118990.0,0.0925017]
[1752694677175,0.1914193,119000.0,118990.0,0.1183317]
[1752694677375,0.1914193,119000.0,118990.0,0.2258434]
[1752694677376,0.1868993,119000.0,118990.0,0.2258434]
[1752694677580,0.18980759,119000.0,118990.0,0.2258434]
[1752694677771,0.18980759,119000.0,118990.0,0.23743314]
[1752694678673,0.18980759,119000.0,118990.0,0.26469314]
[1752694679069,0.19080759,119000.0,118990.0,0.27169314]
[1752694679274,0.19084759,119000.0,118990.0,0.27169314]
[1752694679578,0.19084759,119000.0,118990.0,0.10371974]
[1752694679877,0.19084759,119000.0,118990.0,0.27169314]
[1752694682686,0.56901942,119000.0,118990.0,0.10371974]
[1752694683190,0.21294759,119000.0,118990.0,0.10371974]
[1752694683486,0.56901942,119000.0,118990.0,0.10371974]
[1752694683682,0.56901942,119000.0,118990.0,0.27169314]
[1752694684188,0.21294759,119000.0,118990.0,0.10371974]
[1752694684486,0.56901942,119000.0,118990.0,0.10371974]
[1752694684880,0.21294759,119000.0,118990.0,0.10371974]
[1752694685081,0.56901942,119000.0,118990.0,0.10371974]
[1752694685885,1.24509125,119000.0,118990.0,0.007]
[1752694686283,0.2020275,118980.0,118970.0,0.04615]
[1752694686481,0.8695475,118980.0,118970.0,0.04615]
[1752694686688,1.22852762,118980.0,118970.0,0.04615]
[1752694686985,0.87245579,118980.0,118970.0,0.04615]
[1752694687184,1.22852762,118980.0,118970.0,0.04615]
[1752694688390,0.87245579,118980.0,118970.0,0.2186716]
[1752694688590,0.87345579,118980.0,118970.0,0.08713]
[1752694688979,1.2479445,118980.0,118970.0,0.09883527]
[1752694689184,1.2479445,118980.0,118970.0,0.26683687]
[1752694689585,0.89187267,118980.0,118970.0,0.26683687]
[1752694689786,1.2479845,118980.0,118970.0,0.26683687]
[1752694689985,1.2479845,118980.0,118970.0,0.09883527]
[1752694690985,0.89191267,118980.0,118970.0,0.09883527]
[1752694691385,1.2479845,118980.0,118970.0,0.09883527]
[1752694691787,0.89191267,118980.0,118970.0,0.09883527]
[1752694692390,0.04130517,118980.0,118970.0,0.6229077]
[1752694692591,0.68856517,118980.0,118970.0,0.6229077]
[1752694692792,0.85655167,118980.0,118970.0,0.6229077]
[1752694693793,0.85655167,118980.0,118970.0,0.26683587]
[1752694694094,0.85655167,118980.0,118970.0,0.6229077]
[1752694694495,0.85655167,118980.0,118970.0,0.4549071]
[1752694694794,0.85655167,118980.0,118970.0,0.6229078]
[1752694695093,0.87565167,118980.0,118970.0,0.4549071]
[1752694695298,1.2468235,118980.0,118970.0,0.09883527]
[1752694695493,1.2468235,118980.0,118970.0,0.03711527]
[1752694695693,1.2468235,118980.0,118970.0,0.002]
[1752694696196,1.2468235,118980.0,118970.0,0.02467]
[1752694696798,1.2468235,118980.0,118970.0,0.002]
[1752694696996,1.30813369,118980.0,118970.0,0.002]
[1752694697597,0.89075167,118980.0,118970.0,0.002]
[1752694697900,1.30813369,118980.0,118970.0,0.002]
[1752694699704,0.89075167,118980.0,118970.0,0.002]
[1752694699998,1.30813369,118980.0,118970.0,0.002]
[1752694700701,1.30813369,118980.0,118970.0,0.02467]
[1752694700901,1.30813369,118980.0,118970.0,0.04846]
[1752694701601,0.19035177,118980.0,118970.0,0.67317272]
[1752694701799,0.83814489,118980.0,118970.0,0.50517202]
[1752694702000,0.83814489,118980.0,118970.0,0.08779]
[1752694702001,0.85437489,118980.0,118970.0,0.08779]
[1752694702898,0.86947489,118980.0,118970.0,0.07184]
[1752694703099,0.86947489,118980.0,118970.0,0.04846]
[1752694703304,1.28685691,118980.0,118970.0,0.04846]
[1752694703497,1.28641691,118980.0,118970.0,0.04846]
[1752694703705,0.86903489,118980.0,118970.0,0.04846]
[1752694704098,1.28641691,118980.0,118970.0,0.04846]
[1752694704298,1.28641691,118980.0,118970.0,0.002]
[1752694704493,0.86903489,118980.0,118970.0,0.002]
[1752694704695,0.86903489,118980.0,118970.0,0.04846]
[1752694704899,0.86903489,118980.0,118970.0,0.05324]
[1752694705600,0.86903489,118980.0,118970.0,0.04846]
[1752694706306,1.28641691,118980.0,118970.0,0.07860007]
[1752694707202,1.28641691,118980.0,118970.0,0.05481007]
[1752694707803,1.28641691,118980.0,118970.0,0.02467]
[1752694708001,1.28641691,118980.0,118970.0,0.002]
[1752694709805,0.86903489,118980.0,118970.0,0.002]
[1752694710007,1.28641691,118980.0,118970.0,0.002]
[1752694710305,1.28641691,118980.0,118970.0,0.05481007]
[1752694710506,1.28641691,118980.0,118970.0,0.04846]
[1752694711196,1.28641691,118980.0,118970.0,0.07860007]
[1752694711606,1.28641691,118980.0,118970.0,0.04846]
[1752694712109,0.86903489,118980.0,118970.0,0.02467]
[1752694712303,1.28641691,118980.0,118970.0,0.05481007]
[1752694713802,0.86903489,118980.0,118970.0,0.05481007]
[1752694714006,1.29641691,118980.0,118970.0,0.05481007]
[1752694714201,0.87903489,118980.0,118970.0,0.07860007]
[1752694714506,0.87787489,118980.0,118970.0,0.11086007]
[1752694714907,0.86257489,118980.0,118970.0,0.15595415]
[1752694715106,0.86257489,118980.0,118970.0,0.5431961]
[1752694715302,0.86261489,118980.0,118970.0,0.5431961]
[1752694715504,0.86261489,118980.0,118970.0,0.12581408]
[1752694715702,1.29057691,118980.0,118970.0,0.0699773]
[1752694715909,1.29509691,118980.0,118970.0,0.0699773]
[1752694716105,1.29509691,118980.0,118970.0,0.0937673]
[1752694716503,1.29509691,118980.0,118970.0,0.1330973]
[1752694716904,1.23383799,118980.0,118970.0,0.1330973]
[1752694719106,1.29505711,118980.0,118970.0,0.1330973]
[1752694722714,0.87771489,118980.0,118970.0,0.1308073]
[1752694722914,1.29505711,118980.0,118970.0,0.1308073]
[1752694723411,1.29505711,118980.0,118970.0,0.0937673]
[1752694723708,1.31772711,118980.0,118970.0,0.0302225]
[1752694723911,0.2329609,118970.0,118960.0,0.0002]
[1752694724116,0.65030312,118970.0,118960.0,0.0002]
[1752694724316,0.65030312,118970.0,118960.0,0.02892]
[1752694724816,0.2329609,118970.0,118960.0,0.06342]
[1752694725017,0.90246919,118970.0,118960.0,0.06342]
[1752694725613,1.32181141,118970.0,118960.0,0.08717]
[1752694725812,0.90446919,118970.0,118960.0,0.08717]
[1752694726218,1.32181141,118970.0,118960.0,0.08617]
[1752694727415,0.90446919,118970.0,118960.0,0.08617]
[1752694727616,1.32181141,118970.0,118960.0,0.08617]
[1752694728515,0.23786919,118970.0,118960.0,0.08617]
[1752694728712,0.65521141,118970.0,118960.0,0.08617]
[1752694729016,0.90298919,118970.0,118960.0,0.08617]
[1752694729215,0.67229369,118970.0,118960.0,0.08617]
[1752694729419,1.32025141,118970.0,118960.0,0.08617]
[1752694730807,0.90290919,118970.0,118960.0,0.08617]
[1752694731013,1.32025141,118970.0,118960.0,0.08617]
[1752694731210,0.90290919,118970.0,118960.0,0.08617]
[1752694731416,1.32025141,118970.0,118960.0,0.08617]
[1752694733324,0.90290919,118970.0,118960.0,0.08617]
[1752694733620,1.32025141,118970.0,118960.0,0.08617]
[1752694737922,1.32025141,118970.0,118960.0,0.08597]
[1752694738221,1.31825141,118970.0,118960.0,0.08597]
[1752694738422,1.32125141,118970.0,118960.0,0.08597]
[1752694738916,0.23886919,118970.0,118960.0,0.08597]
[1752694739119,0.89974919,118970.0,118960.0,0.08597]
[1752694739321,0.88916919,118970.0,118960.0,0.08597]
[1752694739521,0.88872919,118970.0,118960.0,0.08597]
[1752694739917,0.22828919,118970.0,118960.0,0.67132702]
[1752694740120,0.86717919,118970.0,118960.0,0.67132702]
[1752694740315,0.86741919,118970.0,118960.0,0.67132702]
[1752694740522,0.86741919,118970.0,118960.0,0.2539848]
[1752694740716,0.86741919,118970.0,118960.0,0.3144465]
[1752694740911,0.86777919,118970.0,118960.0,0.1464317]
[1752694741119,0.89044919,118970.0,118960.0,0.50254606]
[1752694741422,0.89044919,118970.0,118960.0,0.3144465]
[1752694741615,0.17390919,118970.0,118960.0,0.67056086]
[1752694741818,0.84138879,118970.0,118960.0,1.02667522]
[1752694742022,0.84138879,118970.0,118960.0,1.19479522]
[1752694742221,0.00590829,118970.0,118960.0,1.38433352]
[1752694742427,0.84162879,118970.0,118960.0,1.45971866]
[1752694742921,0.84162879,118970.0,118960.0,1.38433352]
[1752694743326,0.84162879,118970.0,118960.0,1.45983228]
[1752694743520,0.84162879,118970.0,118960.0,1.10371792]
[1752694747129,0.84162879,118970.0,118960.0,0.85371792]
[1752694748732,0.67362829,118970.0,118960.0,0.49760356]
[1752694748928,1.19774315,118970.0,118960.0,0.32948346]
[1752694749231,0.90545879,118970.0,118960.0,0.31431787]
[1752694749731,0.89487879,118970.0,118960.0,0.31431787]
[1752694749931,0.89487879,118970.0,118960.0,0.67043223]
[1752694750132,0.87220879,118970.0,118960.0,0.2539847]
[1752694750424,0.84162879,118970.0,118960.0,0.61009906]
[1752694751086,0.84162879,118970.0,118960.0,0.31431055]
[1752694751237,0.84162879,118970.0,118960.0,0.67042491]
[1752694751733,0.67818829,118970.0,118960.0,1.02653927]
[1752694751925,0.67818829,118970.0,118960.0,0.31431055]
[1752694752125,0.67818829,118970.0,118960.0,1.02653927]
[1752694752731,0.84618879,118970.0,118960.0,1.02653927]
[1752694753234,0.67818829,118970.0,118960.0,1.19465927]
[1752694754335,0.84618879,118970.0,118960.0,1.19465927]
[1752694754734,0.84618879,118970.0,118960.0,1.48925927]
[1752694755236,0.67818829,118970.0,118960.0,1.48925927]
[1752694756436,0.67818829,118970.0,118960.0,0.77703055]
[1752694756627,0.84618879,118970.0,118960.0,0.77703055]
[1752694756831,0.84618879,118970.0,118960.0,1.13314491]
[1752694757029,0.84618879,118970.0,118960.0,0.77703055]
[1752694757231,0.87784879,118970.0,118960.0,0.96502491]
[1752694757431,0.90051879,118970.0,118960.0,0.96502491]
[1752694757734,0.90051879,118970.0,118960.0,0.60891055]
[1752694757933,0.90051879,118970.0,118960.0,0.96502491]
[1752694759036,1.26721315,118970.0,118960.0,0.59337055]
[1752694759234,0.91109879,118970.0,118960.0,0.59337055]
[1752694760331,0.91109879,118970.0,118960.0,0.60861055]
[1752694760726,0.91109879,118970.0,118960.0,0.31401055]
[1752694760933,0.22823879,118970.0,118960.0,0.67012491]
[1752694761135,0.89607879,118970.0,118960.0,0.67012491]
[1752694761534,0.22823879,118970.0,118960.0,0.67012491]
[1752694761735,0.89451879,118970.0,118960.0,0.67012491]
[1752694762038,0.22823879,118970.0,118960.0,0.67012491]
[1752694762232,0.22823879,118970.0,118960.0,0.60979906]
[1752694762537,0.89379879,118970.0,118960.0,0.60979906]
[1752694762733,0.89379879,118970.0,118960.0,0.2536847]
[1752694762936,0.89343879,118970.0,118960.0,0.60979906]
[1752694763837,0.89343879,118970.0,118960.0,0.2536847]
[1752694764037,0.89343879,118970.0,118960.0,0.60979906]
[1752694765236,0.89343879,118970.0,118960.0,0.6701789]
[1752694765431,0.22823879,118970.0,118960.0,0.6701789]
[1752694765637,0.89183879,118970.0,118960.0,0.6701789]
[1752694766940,0.89183879,118970.0,118960.0,0.31406454]
[1752694767141,0.89183879,118970.0,118960.0,0.6701789]
[1752694768041,0.89183879,118970.0,118960.0,0.31406454]
[1752694768340,0.89183879,118970.0,118960.0,0.6701789]
[1752694769444,0.22823879,118970.0,118960.0,0.6701789]
[1752694769640,0.88915879,118970.0,118960.0,0.60979906]
[1752694770238,0.20556889,118970.0,118960.0,0.60979906]
[1752694770439,0.86604889,118970.0,118960.0,0.60979906]
[1752694770641,0.86632889,118970.0,118960.0,0.2536847]
[1752694770845,0.86632889,118970.0,118960.0,0.68529782]
[1752694771644,0.00594829,118970.0,118960.0,1.33601218]
[1752694771943,0.00594829,118970.0,118960.0,1.50413218]
[1752694772147,0.00594829,118970.0,118960.0,1.53404167]
[1752694772843,0.00594829,118970.0,118960.0,1.55288999]
[1752694773039,0.00594829,118970.0,118960.0,2.21332999]
[1752694773841,0.05437,119000.0,118990.0,0.2064024]
[1752694774035,0.9429252,119000.0,118990.0,0.669275]
[1752694774240,0.900935,119000.0,118990.0,0.669275]
[1752694774744,0.8589448,119000.0,118990.0,0.60884676]
[1752694775146,0.8659448,119000.0,118990.0,0.60884676]
[1752694775442,0.8659448,119000.0,118990.0,0.66923169]
[1752694775643,0.8629448,119000.0,118990.0,0.66923169]
[1752694777744,0.8599448,119000.0,118990.0,0.67223169]
[1752694781946,0.8599448,119000.0,118990.0,0.61184676]
[1752694784350,0.8599448,119000.0,118990.0,0.2557324]
[1752694784549,0.8599448,119000.0,118990.0,0.61184676]
[1752694784550,0.8826148,119000.0,118990.0,0.61184676]
[1752694786341,0.8826148,119000.0,118990.0,0.2557324]
[1752694786548,0.8826148,119000.0,118990.0,0.61184676]
[1752694787452,0.8931948,119000.0,118990.0,0.61184676]
[1752694788250,0.8826148,119000.0,118990.0,0.61184676]
[1752694791149,0.8826148,119000.0,118990.0,0.65705787]
[1752694792745,0.8826148,119000.0,118990.0,0.30094351]
[1752694792950,0.8826148,119000.0,118990.0,0.65705787]
[1752694795260,0.8826148,119000.0,118990.0,0.30094351]
[1752694795457,0.8826148,119000.0,118990.0,0.65705787]
[1752694796152,0.8931948,119000.0,118990.0,0.65705787]
[1752694796557,0.8931948,119000.0,118990.0,0.30094351]
[1752694796756,0.8931948,119000.0,118990.0,0.65705787]
[1752694798254,0.8931948,119000.0,118990.0,0.61184676]
[1752694799162,0.8931948,119000.0,118990.0,0.67223169]
[1752694799759,0.8931948,119000.0,118990.0,0.69080128]
[1752694799953,0.8826148,119000.0,118990.0,0.69080128]
[1752694800354,0.8826148,119000.0,118990.0,0.63041635]
[1752694800750,0.8931948,119000.0,118990.0,0.63041635]
[1752694801061,0.8931948,119000.0,118990.0,0.69080128]
[1752694801562,0.2339148,119000.0,118990.0,0.69080128]
[1752694801756,0.8732948,119000.0,118990.0,0.69080128]
[1752694801951,0.8838748,119000.0,118990.0,0.08661452]
[1752694802157,0.1972025,118990.0,118980.0,0.06058493]
[1752694802356,0.1972166,118980.0,118970.0,0.31321948]
[1752694802557,1.20325096,118980.0,118970.0,0.48102018]
[1752694802761,0.8471366,118980.0,118970.0,0.54148644]
[1752694802961,0.8471366,118980.0,118970.0,0.9258508]
[1752694803157,1.20325096,118980.0,118970.0,0.39718574]
[1752694803359,1.20325096,118980.0,118970.0,0.35506626]
[1752694803565,1.20325096,118980.0,118970.0,0.2946]
[1752694803865,1.20325096,118980.0,118970.0,0.33992604]
[1752694804063,1.22016697,118980.0,118970.0,0.03474604]
[1752694804263,1.22116697,118980.0,118970.0,0.06384369]
[1752694804565,1.23189341,118980.0,118970.0,0.05284654]
[1752694804766,1.23089341,118980.0,118970.0,0.05284654]
[1752694804960,1.23489341,118980.0,118970.0,0.02264889]
[1752694805661,0.86805261,118980.0,118970.0,0.02264889]
[1752694805866,1.22416697,118980.0,118970.0,0.02264889]
[1752694807267,0.1680007,118970.0,118960.0,0.23962969]
[1752694807467,0.1680007,118970.0,118960.0,0.29116969]
[1752694808370,0.1680007,118970.0,118960.0,0.2685208]
[1752694809063,0.1680007,118970.0,118960.0,0.3037108]
[1752694810972,0.1680007,118970.0,118960.0,0.1356962]
[1752694811471,0.1680007,118970.0,118960.0,0.3037111]
[1752694812167,0.8161607,118970.0,118960.0,0.3037111]
[1752694812368,0.8161607,118970.0,118960.0,0.62962781]
[1752694812568,0.8161607,118970.0,118960.0,0.27351345]
[1752694812769,0.8161607,118970.0,118960.0,0.62962781]
[1752694812972,0.1710007,118970.0,118960.0,0.62962781]
[1752694813171,0.8192007,118970.0,118960.0,0.62962781]
[1752694813874,0.8172007,118970.0,118960.0,0.62962781]
[1752694814474,0.1690007,118970.0,118960.0,0.65973581]
[1752694814674,0.8172007,118970.0,118960.0,0.27351345]
[1752694814875,0.8172007,118970.0,118960.0,0.62962781]
[1752694815071,0.1690007,118970.0,118960.0,0.62962781]
[1752694815272,0.8158807,118970.0,118960.0,0.62962781]